{"text_format":"3","workbook":"xlsx","n_sheets":4,"sheets":["BP STRUCTURE 2019","BP ACTION 2019","CR STRUCTURE 30 09 2018","option si besoin BP unitaire"],"read":"whole","date_system":"1900"}

{"sheet":"BP STRUCTURE 2019","index":0,"n_rows":51,"n_cols":4,"rows_kept":51,"merged":[[0,0,0,1],[1,0,1,3],[3,0,3,1],[3,2,3,3],[10,2,10,3],[13,2,13,3],[16,2,16,3],[20,2,20,3],[23,2,23,3],[26,2,26,3],[28,2,28,3],[32,2,32,3],[35,2,35,3]]}
["Budget prévisionnel de l'ASSOCIATION",null,null,"<= nom de l'association"]
["Exercice du 01 / 01 /2019  au  31 / 12 / 2019  "]
[]
["CHARGES","Prévisionnel ","PRODUITS","Prévisionnel "]
["60 – Achats",{"$f":"SUM(B6:B10)","v":{"v":0,"d":"0.00 €"}},"70 – Vente produits finis, prestations de services, marchandises",{"$f":"SUM(D6:D9)","v":{"v":0,"d":"0.00 €"}}]
["Achats d'études et de prestations de services",null,"Prestations de services"]
["Achats stockés de matières et de fournitures",null,"Vente de marchandises"]
["Achats non stockés de matières et de fournitures",null,"Produits des activités annexes"]
["Autres achats"]
[null,null,"74 – Subventions d'exploitation",{"$f":"D12+D13+D15+D16+D18+D19+D20+D22+D23+D25+D26+D28+D30+D31+D32+D34+D35+D37+D38","v":{"v":0,"d":"0.00 €"}}]
["61 – Services extérieurs",{"$f":"SUM(B12:B17)","v":{"v":0,"d":"0.00 €"}},"État   (à préciser dont politique de la ville)"]
["Sous traitance générale"]
["Locations"]
["Entretien et réparation",null,"Région  (à préciser)"]
["Assurance"]
["Documentation"]
[null,null,"Département  (autre ligne à préciser dont politique de la ville)"]
["62 – Autres services extérieurs",{"$f":"SUM(B19:B25)","v":{"v":0,"d":"0.00 €"}},"Crédits insertion"]
["Personnel extérieur",null,"Fonds d'aide aux jeunes"]
["Honoraires"]
["Publicité, publication",null,"Intercommunalités  (à préciser dont politique de la ville)"]
["Déplacements, missions, réception"]
["Frais postaux et de télécommunications"]
["Services bancaires",null,"Communes   (à préciser dont politique de la ville)"]
[]
["63 – Impôts et taxes",{"$f":"SUM(B27:B28)","v":{"v":0,"d":"0.00 €"}}]
["Impôts et taxes sur rémunération",null,"Fonds européens"]
["Autres impôts et taxes"]
["64 – Charges de personnel",{"$f":"SUM(B30:B35)","v":{"v":0,"d":"0.00 €"}},"Autres aides publiques  (à préciser)"]
["Rémunération des salariés en insertion",null,"ASP (emplois aidés)"]
["Rémunération des salariés permanents "]
["Charges sociales des salariés en insertion"]
["Charges sociales des salaries permanents ",null,"Organismes sociaux (à préciser)"]
["Autres charges de personnel"]
[]
["65 – Autres charges de gestion courante",{"v":0,"d":"0.00 €"},"Aides privées (à préciser)"]
[]
["66 – Charges financières",{"v":0,"d":"0.00 €"}]
[null,null,"75 – Autres produits de gestion courante",{"v":0,"d":"0.00 €"}]
["67 – Charges exceptionnelles",{"v":0,"d":"0.00 €"},"dont cotisations, dons manuels ou legs"]
[null,null,"76 – Produits financiers",{"v":0,"d":"0.00 €"}]
["68 – Dotation aux amortissements, provisions",{"v":0,"d":"0.00 €"},"77 – Produits exceptionnels",{"v":0,"d":"0.00 €"}]
[null,null,"78 – Reprises sur amortissements et provisions",{"v":0,"d":"0.00 €"}]
[null,null,"79 – Transfert de charges",{"v":0,"d":"0.00 €"}]
["TOTAL DES CHARGES PREVISIONNELLES",{"$f":"B5+B11+B18+B26+B29+B36+B38+B40+B42","v":{"v":0,"d":"0.00 €"}},"TOTAL DES PRODUITS PREVISIONNELS",{"$f":"D5+D10+D39+D41+D42+D43+D44","v":{"v":0,"d":"0.00 €"}}]
[]
["86 – Contributions volontaires en nature",{"$f":"SUM(B48:B50)","v":{"v":0,"d":"0.00 €"}},"87 – Contributions volontaires en nature",{"$f":"SUM(D48:D50)","v":{"v":0,"d":"0.00 €"}}]
["Personnel bénévole",null,"Bénévolat"]
["Mise à disposition gratuite de biens et prestations",null,"Prestations en nature"]
["Secours en nature",null,"Dons en nature"]
["TOTAL DES CHARGES",{"$f":"B45+B47","v":{"v":0,"d":"0.00 €"}},"TOTAL DES PRODUITS",{"$f":"D45+D47","v":{"v":0,"d":"0.00 €"}}]

{"sheet":"BP ACTION 2019","index":1,"n_rows":51,"n_cols":4,"rows_kept":51,"merged":[[0,0,0,1],[1,0,1,3],[3,0,3,1],[3,2,3,3],[10,2,10,3],[13,2,13,3],[16,2,16,3],[20,2,20,3],[23,2,23,3],[26,2,26,3],[28,2,28,3],[32,2,32,3],[35,2,35,3]]}
["Budget prévisionnel de l'ACTION ",null,null,"<= Intitulé de l'action"]
["Exercice du 01 / 01 /2019   au  31 / 12 / 2019   "]
[]
["CHARGES","Prévisionnel 2018","PRODUITS","Prévisionnel 2018"]
["60 – Achats",{"$f":"SUM(B6:B10)","v":{"v":0,"d":"0.00 €"}},"70 – Vente produits finis, prestations de services, marchandises",{"$f":"SUM(D6:D9)","v":{"v":0,"d":"0.00 €"}}]
["Achats d'études et de prestations de services",null,"Prestations de services"]
["Achats stockés de matières et de fournitures",null,"Vente de marchandises"]
["Achats non stockés de matières et de fournitures",null,"Produits des activités annexes"]
["Autres achats"]
[null,null,"74 – Subventions d'exploitation",{"$f":"D12+D13+D15+D16+D18+D19+D20+D22+D23+D25+D26+D28+D30+D31+D32+D34+D35+D37+D38","v":{"v":0,"d":"0.00 €"}}]
["61 – Services extérieurs",{"$f":"SUM(B12:B17)","v":{"v":0,"d":"0.00 €"}},"État  (à préciser dont politique de la ville)"]
["Sous traitance générale"]
["Locations"]
["Entretien et réparation",null,"Région  (à préciser)"]
["Assurance"]
["Documentation"]
[null,null,"Département (autre ligne à préciser dont politique de la ville)"]
["62 – Autres services extérieurs",{"$f":"SUM(B19:B25)","v":{"v":0,"d":"0.00 €"}},"Crédits insertion"]
["Personnel extérieur",null,"Fonds d'aide aux jeunes"]
["Honoraires"]
["Publicité, publication",null,"Intercommunalités  (à préciser dont politique de la ville)"]
["Déplacements, missions, réception"]
["Frais postaux et de télécommunications"]
["Services bancaires",null,"Communes (à préciser dont politique de la ville)"]
[]
["63 – Impôts et taxes",{"$f":"SUM(B27:B28)","v":{"v":0,"d":"0.00 €"}}]
["Impôts et taxes sur rémunération",null,"Fonds européens"]
["Autres impôts et taxes"]
["64 – Charges de personnel",{"$f":"SUM(B30:B35)","v":{"v":0,"d":"0.00 €"}},"Autres aides publiques (à préciser)"]
["Rémunération des salariés en insertion",null,"ASP (emplois aidés)"]
["Rémunération des salariés permanents "]
["Charges sociales des salariés en insertion"]
["Charges sociales des salaries permanents ",null,"Organismes sociaux (à préciser)"]
["Autres charges de personnel"]
[]
["65 – Autres charges de gestion courante",{"v":0,"d":"0.00 €"},"Aides privées (à préciser)"]
[]
["66 – Charges financières",{"v":0,"d":"0.00 €"}]
[null,null,"75 – Autres produits de gestion courante",{"v":0,"d":"0.00 €"}]
["67 – Charges exceptionnelles",{"v":0,"d":"0.00 €"},"dont cotisations, dons manuels ou legs"]
[null,null,"76 – Produits financiers",{"v":0,"d":"0.00 €"}]
["68 – Dotation aux amortissements, provisions",{"v":0,"d":"0.00 €"},"77 – Produits exceptionnels",{"v":0,"d":"0.00 €"}]
[null,null,"78 – Reprises sur amortissements et provisions",{"v":0,"d":"0.00 €"}]
[null,null,"79 – Transfert de charges",{"v":0,"d":"0.00 €"}]
["TOTAL DES CHARGES PREVISIONNELLES",{"$f":"B5+B11+B18+B26+B29+B36+B38+B40+B42","v":{"v":0,"d":"0.00 €"}},"TOTAL DES PRODUITS PREVISIONNELS",{"$f":"D5+D10+D39+D41+D42+D43+D44","v":{"v":0,"d":"0.00 €"}}]
[]
["86 – Contributions volontaires en nature",{"$f":"SUM(B48:B50)","v":{"v":0,"d":"0.00 €"}},"87 – Contributions volontaires en nature",{"$f":"SUM(D48:D50)","v":{"v":0,"d":"0.00 €"}}]
["Personnel bénévole",null,"Bénévolat"]
["Mise à disposition gratuite de biens et prestations",null,"Prestations en nature"]
["Secours en nature",null,"Dons en nature"]
["TOTAL DES CHARGES",{"$f":"B45+B47","v":{"v":0,"d":"0.00 €"}},"TOTAL DES PRODUITS",{"$f":"D45+D47","v":{"v":0,"d":"0.00 €"}}]

{"sheet":"CR STRUCTURE 30 09 2018","index":2,"n_rows":53,"n_cols":6,"rows_kept":53,"merged":[[0,0,0,2],[0,3,0,4],[1,0,1,5],[10,3,10,5],[13,3,13,5],[16,3,16,5],[20,3,20,5],[23,3,23,5],[26,3,26,5],[28,3,28,5],[32,3,32,5],[35,3,35,5]]}
["COMPTE DE RESULTAT de l'ASSOCIATION",{"$nulls":4},"<= nom de l'association"]
["Période  du       01/01/2018   au  30/09/2018   "]
[]
["CHARGES","réalisé au\n 30/09/2018","prévisionnel 2018","PRODUITS","réalisé au\n 30/09/2018","prévisionnel 2018"]
["60 – Achats",{"$f":"SUM(B6:B10)","v":{"v":0,"d":"0.00 €"}},{"$f":"SUM(C6:C10)","v":{"v":0,"d":"0.00 €"}},"70 – Vente produits finis, prestations de services, marchandises",{"$f":"SUM(E6:E9)","v":{"v":0,"d":"0.00 €"}},{"$f":"SUM(F6:F9)","v":{"v":0,"d":"0.00 €"}}]
["Achats études et prestations de services",null,null,"Prestations de services"]
["Achats stockés matières et fournitures",null,null,"Vente de marchandises"]
["Achats non stockés matières et fournitures",null,null,"Produits des activités annexes"]
["Autres achats"]
[{"$nulls":3},"74 – Subventions d'exploitation",{"$f":"E12+E13+E15+E16+E18+E19+E20+E22+E23+E25+E26+E28+E30+E31+E32+E34+E35+E37+E38","v":{"v":0,"d":"0.00 €"}},{"$f":"F12+F13+F15+F16+F18+F19+F20+F22+F23+F25+F26+F28+F30+F31+F32+F34+F35+F37+F38","v":{"v":0,"d":"0.00 €"}}]
["61 – Services extérieurs",{"$f":"SUM(B12:B17)","v":{"v":0,"d":"0.00 €"}},{"$f":"SUM(C12:C17)","v":{"v":0,"d":"0.00 €"}},"État  (à préciser dont politique de la ville)"]
["Sous traitance générale"]
["Locations"]
["Entretien et réparation",null,null,"Région  (à préciser)"]
["Assurance"]
["Documentation"]
[{"$nulls":3},"Département (autre ligne à préciser dont politique de la ville)"]
["62 – Autres services extérieurs",{"$f":"SUM(B19:B25)","v":{"v":0,"d":"0.00 €"}},{"$f":"SUM(C19:C25)","v":{"v":0,"d":"0.00 €"}},"Crédits insertion"]
["Personnel extérieur",null,null,"Fonds d'aide aux jeunes"]
["Honoraires"]
["Publicité, publication",null,null,"Intercommunalités  (à préciser dont politique de la ville)"]
["Déplacements, missions, réception"]
["Frais postaux et de télécommunications"]
["Services bancaires",null,null,"Communes  (à préciser dont politique de la ville)"]
[]
["63 – Impôts et taxes",{"$f":"SUM(B27:B28)","v":{"v":0,"d":"0.00 €"}},{"$f":"SUM(C27:C28)","v":{"v":0,"d":"0.00 €"}}]
["Impôts et taxes sur rémunération",null,null,"Fonds européens"]
["Autres impôts et taxes"]
["64 – Charges de personnel",{"$f":"SUM(B30:B35)","v":{"v":0,"d":"0.00 €"}},{"$f":"SUM(C30:C35)","v":{"v":0,"d":"0.00 €"}},"Autres aides publiques (à préciser)"]
["Rémunération des salariés en insertion",null,null,"ASP (emplois aidés)"]
["Rémunération des salariés permanents "]
["Charges sociales des salariés en insertion"]
["Charges sociales des salaries permanents ",null,null,"Organismes sociaux (à préciser)"]
["Autres charges de personnel"]
[]
["65 – Autres charges gestion courante",{"v":0,"d":"0.00 €"},{"v":0,"d":"0.00 €"},"Aides privées (à préciser)"]
[]
["66 – Charges financières",{"v":0,"d":"0.00 €"},{"v":0,"d":"0.00 €"}]
[{"$nulls":3},"75 – Autres produits gestion courante",{"v":0,"d":"0.00 €"},{"v":0,"d":"0.00 €"}]
["67 – Charges exceptionnelles",{"v":0,"d":"0.00 €"},{"v":0,"d":"0.00 €"},"dont cotisations, dons manuels ou legs"]
[{"$nulls":3},"76 – Produits financiers",{"v":0,"d":"0.00 €"},{"v":0,"d":"0.00 €"}]
["68 – Dotation aux amortissements, provisions",{"v":0,"d":"0.00 €"},{"v":0,"d":"0.00 €"},"77 – Produits exceptionnels",{"v":0,"d":"0.00 €"},{"v":0,"d":"0.00 €"}]
[{"$nulls":3},"78 – Reprises sur amortissements et provisions",{"v":0,"d":"0.00 €"},{"v":0,"d":"0.00 €"}]
[{"$nulls":3},"79 – Transfert de charges",{"v":0,"d":"0.00 €"},{"v":0,"d":"0.00 €"}]
["Total des charges ",{"$f":"B5+B11+B18+B26+B29+B36+B38+B40+B42","v":{"v":0,"d":"0.00 €"}},{"$f":"C5+C11+C18+C26+C29+C36+C38+C40+C42","v":{"v":0,"d":"0.00 €"}},"Total des produits ",{"$f":"E5+E10+E39+E41+E42+E43+E44","v":{"v":0,"d":"0.00 €"}},{"$f":"F5+F10+F39+F41+F42+F43+F44","v":{"v":0,"d":"0.00 €"}}]
["excédent",null,null,"déficit"]
["TOTAL DES CHARGES ",{"$f":"B45+B46","v":{"v":0,"d":"0.00 €"}},{"$f":"C45+C46","v":{"v":0,"d":"0.00 €"}},"TOTAL DES PRODUITS ",{"$f":"E45+E46","v":{"v":0,"d":"0.00 €"}},{"$f":"F45+F46","v":{"v":0,"d":"0.00 €"}}]
[]
["86 – Contributions volontaires en nature",{"$f":"SUM(B50:B52)","v":{"v":0,"d":"0.00 €"}},{"$f":"SUM(C50:C52)","v":{"v":0,"d":"0.00 €"}},"87 – Contributions volontaires en nature",{"$f":"SUM(E50:E52)","v":{"v":0,"d":"0.00 €"}},{"$f":"SUM(F50:F52)","v":{"v":0,"d":"0.00 €"}}]
["Personnel bénévole",null,null,"Bénévolat"]
["Mise à disposition gratuite biens prestations",null,null,"Prestations en nature"]
["Secours en nature",null,null,"Dons en nature"]
["TOTAL DES CHARGES",{"$f":"B47+B49","v":{"v":0,"d":"0.00 €"}},{"$f":"C47+C49","v":{"v":0,"d":"0.00 €"}},"TOTAL DES PRODUITS",{"$f":"E47+E49","v":{"v":0,"d":"0.00 €"}},{"$f":"F47+F49","v":{"v":0,"d":"0.00 €"}}]

{"sheet":"option si besoin BP unitaire","index":3,"n_rows":51,"n_cols":4,"rows_kept":51,"merged":[[0,0,0,1],[1,0,1,3],[3,0,3,1],[3,2,3,3],[10,2,10,3],[13,2,13,3],[16,2,16,3],[20,2,20,3],[23,2,23,3],[26,2,26,3],[28,2,28,3],[32,2,32,3],[35,2,35,3]]}
["Budget prévisionnel \"unitaire\"",null,null,"<= Intitulé de l'action"]
["SESSION ou AUTRE à précisier"]
[]
["CHARGES","Prévisionnel 2018","PRODUITS","Prévisionnel 2018"]
["60 – Achats",{"$f":"SUM(B6:B10)","v":{"v":0,"d":"0.00 €"}},"70 – Vente produits finis, prestations de services, marchandises",{"$f":"SUM(D6:D9)","v":{"v":0,"d":"0.00 €"}}]
["Achats d'études et de prestations de services",null,"Prestations de services"]
["Achats stockés de matières et de fournitures",null,"Vente de marchandises"]
["Achats non stockés de matières et de fournitures",null,"Produits des activités annexes"]
["Autres achats"]
[null,null,"74 – Subventions d'exploitation",{"$f":"D12+D13+D15+D16+D18+D19+D20+D22+D23+D25+D26+D28+D30+D31+D32+D34+D35+D37+D38","v":{"v":0,"d":"0.00 €"}}]
["61 – Services extérieurs",{"$f":"SUM(B12:B17)","v":{"v":0,"d":"0.00 €"}},"État  (à préciser dont politique de la ville)"]
["Sous traitance générale"]
["Locations"]
["Entretien et réparation",null,"Région  (à préciser)"]
["Assurance"]
["Documentation"]
[null,null,"Département (autre ligne à préciser dont politique de la ville)"]
["62 – Autres services extérieurs",{"$f":"SUM(B19:B25)","v":{"v":0,"d":"0.00 €"}},"Crédits insertion"]
["Personnel extérieur",null,"Fonds d'aide aux jeunes"]
["Honoraires"]
["Publicité, publication",null,"Intercommunalités  (à préciser dont politique de la ville)"]
["Déplacements, missions, réception"]
["Frais postaux et de télécommunications"]
["Services bancaires",null,"Communes (à préciser dont politique de la ville)"]
[]
["63 – Impôts et taxes",{"$f":"SUM(B27:B28)","v":{"v":0,"d":"0.00 €"}}]
["Impôts et taxes sur rémunération",null,"Fonds européens"]
["Autres impôts et taxes"]
["64 – Charges de personnel",{"$f":"SUM(B30:B35)","v":{"v":0,"d":"0.00 €"}},"Autres aides publiques (à préciser)"]
["Rémunération des salariés en insertion",null,"ASP (emplois aidés)"]
["Rémunération des salariés permanents "]
["Charges sociales des salariés en insertion"]
["Charges sociales des salaries permanents ",null,"Organismes sociaux (à préciser)"]
["Autres charges de personnel"]
[]
["65 – Autres charges de gestion courante",{"v":0,"d":"0.00 €"},"Aides privées (à préciser)"]
[]
["66 – Charges financières",{"v":0,"d":"0.00 €"}]
[null,null,"75 – Autres produits de gestion courante",{"v":0,"d":"0.00 €"}]
["67 – Charges exceptionnelles",{"v":0,"d":"0.00 €"},"dont cotisations, dons manuels ou legs"]
[null,null,"76 – Produits financiers",{"v":0,"d":"0.00 €"}]
["68 – Dotation aux amortissements, provisions",{"v":0,"d":"0.00 €"},"77 – Produits exceptionnels",{"v":0,"d":"0.00 €"}]
[null,null,"78 – Reprises sur amortissements et provisions",{"v":0,"d":"0.00 €"}]
[null,null,"79 – Transfert de charges",{"v":0,"d":"0.00 €"}]
["TOTAL DES CHARGES PREVISIONNELLES",{"$f":"B5+B11+B18+B26+B29+B36+B38+B40+B42","v":{"v":0,"d":"0.00 €"}},"TOTAL DES PRODUITS PREVISIONNELS",{"$f":"D5+D10+D39+D41+D42+D43+D44","v":{"v":0,"d":"0.00 €"}}]
[]
["86 – Contributions volontaires en nature",{"$f":"SUM(B48:B50)","v":{"v":0,"d":"0.00 €"}},"87 – Contributions volontaires en nature",{"$f":"SUM(D48:D50)","v":{"v":0,"d":"0.00 €"}}]
["Personnel bénévole",null,"Bénévolat"]
["Mise à disposition gratuite de biens et prestations",null,"Prestations en nature"]
["Secours en nature",null,"Dons en nature"]
["TOTAL DES CHARGES",{"$f":"B45+B47","v":{"v":0,"d":"0.00 €"}},"TOTAL DES PRODUITS",{"$f":"D45+D47","v":{"v":0,"d":"0.00 €"}}]